fUSD/lending_fUSD_20250522
["ID","MTS","AMOUNT","RATE_DAILY","PERIOD"]
[361944567,1747903854566,-420.0,0.00032876,5]
[361944568,1747903854575,-1436.35,0.00032876,5]
[361944569,1747903854584,-420.0,0.00032876,5]
[361944570,1747903854594,-292.38,0.00032876,2]
[361944571,1747903854603,-420.0,0.00032876,5]
[361944572,1747903854612,-420.0,0.00032876,5]
[361944573,1747903854621,-420.0,0.00032876,5]
[361944574,1747903854632,-420.0,0.00032876,5]
[361944575,1747903854641,-420.0,0.00032876,5]
[361944576,1747903854651,-1175.13,0.00032876,5]
[361944577,1747903854660,-614.22,0.00032876,5]
[361944578,1747903854669,-1789.2,0.00032876,5]
[361944579,1747903854679,-442.82,0.00032876,5]
[361944580,1747903854688,-420.0,0.00032876,5]
[361944581,1747903854697,-420.0,0.00032876,5]
[361944582,1747903854707,-947.96,0.00032876,5]
[361944583,1747903854717,-479.1918883,0.00032876,5]
[361944584,1747903854727,-776.37,0.00032876,5]
[361944585,1747903854736,-1231.49,0.00032876,5]
[361944586,1747903854746,-869.18,0.00032876,5]
[361944587,1747903854755,-420.0,0.00032876,5]
[361944588,1747903854764,-897.84,0.00032876,5]
[361944589,1747903854776,-956.22,0.00032876,5]
[361944590,1747903854786,-422.6,0.00032876,5]
[361944591,1747903854796,-420.0,0.00032876,5]
[361944592,1747903854806,-420.0,0.00032876,5]
[361944593,1747903854816,-812.42,0.00032876,5]
[361944594,1747903854825,-420.0,0.00032876,5]
[361944595,1747903854835,-420.0,0.00032876,5]
[361944596,1747903854844,-420.0,0.00032876,5]
[361944597,1747903854854,-1260.39,0.00032876,5]
[361944598,1747903854864,-420.0,0.00032876,5]
[361944599,1747903854875,-531.50472257,0.00032876,5]
[361944600,1747903854885,-420.0,0.00032876,5]
[361944601,1747903854895,-592.31,0.00032876,5]
[361944602,1747903854904,-420.0,0.00032876,5]
[361944603,1747903854914,-1031.49,0.00032876,5]
[361944604,1747903854924,-420.0,0.00032876,5]
[361944605,1747903854934,-1268.6,0.00032876,5]
[361944606,1747903854944,-420.0,0.00032876,5]
[361944607,1747903854954,-420.0,0.00032876,5]
[361944608,1747903854964,-420.0,0.00032876,5]
[361944609,1747903854974,-446.75,0.00032876,5]
[361944610,1747903854983,-152.13035,0.00032876,7]
[361944611,1747903854993,-420.0,0.00032876,5]
[361944612,1747903855002,-2405.42,0.00032876,5]
[361944613,1747903855012,-862.69,0.00032876,5]
[361944614,1747903855022,-717.61,0.00032876,5]
[361944615,1747903855032,-1012.21,0.00032876,5]
[361944616,1747903855042,-703.69,0.00032876,5]
[361944617,1747903855052,-420.0,0.00032876,5]
[361944618,1747903855062,-420.0,0.00032876,5]
[361944619,1747903855072,-719.56,0.00032876,5]
[361944620,1747903855082,-420.0,0.00032876,5]
[361944621,1747903855091,-488.89,0.00032876,5]
[361944622,1747903855101,-560.76,0.00032876,5]
[361944623,1747903855111,-420.0,0.00032876,5]
[361944624,1747903855121,-420.0,0.00032876,5]
[361944625,1747903855132,-1171.28,0.00032876,5]
[361944626,1747903855142,-1270.18,0.00032876,5]
[361944627,1747903855151,-501.66,0.00032876,5]
[361944628,1747903855161,-474.0,0.00032876,5]
[361944629,1747903855171,-2931.23,0.00032876,5]
[361944630,1747903855181,-420.0,0.00032876,5]
[361944631,1747903855191,-154.620885,0.00032876,7]
[361944632,1747903855201,-1360.08,0.00032876,5]
[361944633,1747903855210,-420.0,0.00032876,5]
[361944634,1747903855220,-420.0,0.00032876,5]
[361944635,1747903855229,-571.03,0.00032876,5]
[361944636,1747903855239,-544.86913915,0.00032876,5]
[361944637,1747903855249,-420.0,0.00032876,5]
[361944638,1747903855259,-420.0,0.00032876,5]
[361944639,1747903855269,-567.94,0.00032876,5]
[361944640,1747903855279,-151.0,0.00032876,7]
[361944641,1747903855288,-479.58,0.00032876,5]
[361944642,1747903855298,-471.03,0.00032876,5]
[361944643,1747903855307,-420.0,0.00032876,5]
[361944644,1747903855317,-420.0,0.00032876,5]
[361944645,1747903855327,-420.0,0.00032876,5]
[361944646,1747903855338,-151.0,0.00032876,7]
[361944647,1747903855347,-151.0,0.00032876,7]
[361944648,1747903855357,-2016.84,0.00032876,5]
[361944649,1747903855367,-420.0,0.00032876,5]
[361944650,1747903855377,-420.0,0.00032876,5]
[361944651,1747903855388,-1031.7,0.00032876,5]
[361944652,1747903855397,-420.0,0.00032876,5]
[361944653,1747903855407,-631.94,0.00032876,5]
[361944654,1747903855417,-532.99,0.00032876,5]
[361944655,1747903855426,-420.0,0.00032876,5]
[361944656,1747903855436,-420.0,0.00032876,5]
[361944657,1747903855446,-518.30106374,0.00032876,5]
[361944658,1747903855455,-854.2,0.00032876,5]
[361944659,1747903855465,-420.0,0.00032876,5]
[361944660,1747903855474,-1019.66,0.00032876,5]
[361944661,1747903855484,-597.3,0.00032876,5]
[361944662,1747903855493,-420.0,0.00032876,5]
[361944663,1747903855503,-1123.12,0.00032876,5]
[361944664,1747903855513,-420.0,0.00032876,5]
[361944665,1747903855522,-420.0,0.00032876,5]
[361944666,1747903855532,-420.0,0.00032876,5]
[361944667,1747903855541,-1192.06,0.00032876,5]
[361944668,1747903855551,-420.66579228,0.00032876,5]
[361944669,1747903855560,-420.0,0.00032876,5]
[361944670,1747903855570,-5000.0,0.00032876,2]
[361944671,1747903855579,-2221.76446666,0.00032876,3]
[361944672,1747903855589,-420.0,0.00032876,5]
[361944673,1747903855598,-420.0,0.00032876,5]
[361944674,1747903855609,-421.73569815,0.00032876,5]
[361944675,1747903855618,-1205.48,0.00032876,5]
[361944676,1747903855628,-460.35,0.00032876,5]
[361944677,1747903855638,-1061.52,0.00032876,5]
[361944678,1747903855648,-420.0,0.00032876,5]
[361944679,1747903855657,-549.1,0.00032876,5]
[361944680,1747903855667,-420.0,0.00032876,5]
[361944681,1747903855676,-468.13996464,0.00032876,5]
[361944682,1747903855686,-420.0,0.00032876,5]
[361944683,1747903855696,-957.93,0.00032876,5]
[361944684,1747903855706,-1337.24,0.00032876,5]
[361944685,1747903855715,-420.0,0.00032876,5]
[361944686,1747903855725,-420.98292327,0.00032876,5]
[361944687,1747903855735,-631.97,0.00032876,5]
[361944688,1747903855745,-534.42,0.00032876,5]
[361944689,1747903855754,-420.99800752,0.00032876,5]
[361944690,1747903855765,-904.81,0.00032876,5]
[361944691,1747903855775,-420.0,0.00032876,5]
[361944692,1747903855788,-420.0,0.00032876,5]
[361944693,1747903855797,-216.69604604,0.00032876,5]
[361944694,1747903855807,-1216.8,0.00032876,5]
[361944695,1747903855818,-2579.66,0.00032876,5]
[361944696,1747903855829,-421.01905027,0.00032876,5]
[361944697,1747903855839,-420.0,0.00032876,5]
[361944698,1747903855849,-420.0,0.00032876,5]
[361944699,1747903855859,-151.0,0.00032876,7]
[361944700,1747903855870,-420.0,0.00032876,5]
[361944701,1747903855879,-659.82,0.00032876,5]
[361944702,1747903855891,-852.83,0.00032876,5]
[361944703,1747903855901,-420.0,0.00032876,5]
[361944704,1747903855913,-420.0,0.00032876,5]
[361944705,1747903855923,-1298.27,0.00032876,5]
[361944706,1747903855933,-421.73231844,0.00032876,5]
[361944707,1747903855942,-587.33,0.00032876,5]
[361944708,1747903855953,-984.27,0.00032876,5]
[361944709,1747903855962,-674.341734,0.00032876,7]
[361944710,1747903855972,-420.0,0.00032876,5]
[361944711,1747903855982,-151.0,0.00032876,7]
[361944712,1747903855992,-521.85,0.00032876,5]
[361944713,1747903856002,-998.47,0.00032876,5]
[361944714,1747903856012,-530.84213763,0.00032876,5]
[361944715,1747903856022,-674.341734,0.00032876,7]
[361944716,1747903856032,-420.0,0.00032876,5]
[361944717,1747903856042,-420.0,0.00032876,5]
[361944718,1747903856053,-151.0,0.00032876,7]
[361944719,1747903856063,-420.0,0.00032876,5]
[361944720,1747903856073,-660.11,0.00032876,5]
[361944721,1747903856083,-420.0,0.00032876,5]
[361944722,1747903856093,-420.0,0.00032876,5]
[361944723,1747903856103,-518.27,0.00032876,5]
[361944724,1747903856112,-420.0,0.00032876,5]
[361944725,1747903856123,-420.0,0.00032876,5]
[361944726,1747903856134,-420.0,0.00032876,5]
[361944727,1747903856144,-420.0,0.00032876,5]
[361944728,1747903856155,-1306.88,0.00032876,5]
[361944729,1747903856165,-699.62,0.00032876,5]
[361944730,1747903856176,-755.38,0.00032876,5]
[361944731,1747903856187,-420.0,0.00032876,5]
[361944732,1747903856198,-420.0,0.00032876,5]
[361944733,1747903856209,-420.0,0.00032876,5]
[361944734,1747903856220,-771.86,0.00032876,5]
[361944735,1747903856230,-420.0,0.00032876,5]
[361944736,1747903856240,-1097.19,0.00032876,5]
[361944737,1747903856250,-1660.67,0.00032876,5]
[361944738,1747903856260,-364.63173367,0.00032876,5]
[361944739,1747903856270,-420.0,0.00032876,5]
[361944740,1747903856285,-420.0,0.00032876,5]
[361944741,1747903856295,-477.27,0.00032876,5]
[361944742,1747903856305,-421.57,0.00032876,5]
[361944743,1747903856316,-420.0,0.00032876,5]
[361944744,1747903856326,-420.0,0.00032876,5]
[361944745,1747903856337,-420.0,0.00032876,5]
[361944746,1747903856348,-420.0,0.00032876,5]
[361944747,1747903856358,-151.0,0.00032876,7]
[361944748,1747903856513,-481.63,0.00032876,5]
[361944749,1747903856524,-420.0,0.00032876,5]
[361944750,1747903856533,-1159.65,0.00032876,5]
[361944751,1747903856543,-1492.97,0.00032876,5]
[361944752,1747903856552,-420.0,0.00032876,5]
[361944753,1747903856561,-420.0,0.00032876,5]
[361944754,1747903856570,-1379.26,0.00032876,5]
[361944755,1747903856579,-420.0,0.00032876,5]
[361944756,1747903856588,-420.0,0.00032876,5]
[361944757,1747903856597,-428.6,0.00032876,5]
[361944758,1747903856606,-151.0,0.00032876,7]
[361944759,1747903856616,-646.55,0.00032876,5]
[361944760,1747903856625,-420.0,0.00032876,5]
[361944761,1747903856636,-504.54,0.00032876,5]
[361944762,1747903856645,-151.0,0.00032876,7]
[361944763,1747903856655,-884.71,0.00032876,5]
[361944764,1747903856664,-151.157638,0.00032876,7]
[361944765,1747903856673,-151.0,0.00032876,7]
[361944766,1747903856682,-696.61,0.00032876,5]
[361944767,1747903856692,-126.42336201,0.00032876,5]
[361944768,1747903856727,-293.57663799,0.00032876,5]
[361944769,1747903856736,-420.0,0.00032876,5]
[361944770,1747903856745,-979.78,0.00032876,5]
[361944771,1747903856754,-420.0,0.00032876,5]
[361944772,1747903856763,-151.0,0.00032876,7]
[361944773,1747903856773,-420.0,0.00032876,5]
[361944774,1747903856784,-1071.4,0.00032876,5]
[361944775,1747903856795,-1606.48,0.00032876,5]
[361944776,1747903856805,-737.91,0.00032876,5]
[361944777,1747903856814,-420.0,0.00032876,5]
[361944778,1747903856823,-456.92,0.00032876,5]
[361944779,1747903856834,-420.0,0.00032876,5]
[361944780,1747903856845,-162.25387452,0.00032876,5]
[361944781,1747903856854,-422.54298403,0.00032876,5]
[361944782,1747903856865,-419.4540268,0.00032876,5]
[361944783,1747903856876,-420.0,0.00032876,5]
[361944784,1747903856887,-154.42793518,0.00032876,5]
[361944785,1747903856896,-459.28064908,0.00032876,5]
[361944786,1747903856906,-959.88,0.00032876,5]
[361944787,1747903856915,-420.0,0.00032876,5]
[361944788,1747903856924,-420.0,0.00032876,5]
[361944789,1747903856934,-420.0,0.00032876,5]
[361944790,1747903856943,-422.81893365,0.00032876,5]
[361944791,1747903856952,-420.0,0.00032876,5]
[361944792,1747903856961,-913.57,0.00032876,5]
[361944793,1747903856970,-420.0,0.00032876,5]
[361944794,1747903856980,-546.78,0.00032876,5]
[361944795,1747903856990,-420.0,0.00032876,5]
[361944796,1747903856999,-421.11332245,0.00032876,5]
[361944797,1747903857009,-1048.11,0.00032876,5]
[361944798,1747903857018,-420.0,0.00032876,5]
[361944799,1747903857028,-362.88142935,0.00032876,5]
[361944800,1747903857037,-420.0,0.00032876,5]
[361944801,1747903857047,-446.72850935,0.00032876,5]
[361944802,1747903857056,-729.7,0.00032876,5]
[361944803,1747903857065,-769.75,0.00032876,5]
[361944804,1747903857075,-420.0,0.00032876,5]
[361944805,1747903857084,-420.0,0.00032876,5]
[361944806,1747903857094,-420.0,0.00032876,5]
[361944807,1747903857103,-771.07,0.00032876,5]
[361944808,1747903857113,-420.0,0.00032876,5]
[361944809,1747903857122,-510.41,0.00032876,5]
[361944810,1747903857131,-151.0,0.00032876,7]
[361944811,1747903857142,-420.0,0.00032876,5]
[361944812,1747903857152,-433.79238719,0.00032876,5]
[361944813,1747903857161,-420.0,0.00032876,5]
[361944814,1747903857171,-536.56,0.00032876,5]
[361944815,1747903857181,-420.0,0.00032876,5]
[361944816,1747903857191,-420.0,0.00032876,5]
[361944817,1747903857201,-420.0,0.00032876,5]
[361944818,1747903857211,-500.0,0.00032876,5]
[361944819,1747903857220,-500.0,0.00032876,5]
[361944820,1747903857231,-420.0,0.00032876,5]
[361944821,1747903857240,-500.0,0.00032876,5]
[361944822,1747903857250,-275.85568647,0.00032876,5]
[361944823,1747903857259,-500.0,0.00032876,5]
[361944824,1747903857268,-420.0,0.00032876,5]
[361944825,1747903857278,-500.0,0.00032876,5]
[361944826,1747903857287,-420.0,0.00032876,5]
[361944827,1747903857296,-500.0,0.00032876,5]
[361944828,1747903857306,-1451.28,0.00032876,5]
[361944829,1747903857315,-500.0,0.00032876,5]
[361944830,1747903857325,-420.0,0.00032876,5]
[361944831,1747903857334,-420.0,0.00032876,5]
[361944832,1747903857344,-500.0,0.00032876,5]
[361944833,1747903857353,-500.0,0.00032876,5]
[361944834,1747903857363,-420.0,0.00032876,5]
[361944835,1747903857373,-469.53,0.00032876,5]
[361944836,1747903857384,-422.05448496,0.00032876,5]
[361944837,1747903857394,-1562.46,0.00032876,5]
[361944838,1747903857404,-818.27,0.00032876,5]
[361944839,1747903857413,-420.0,0.00032876,5]
[361944840,1747903857423,-421.9013205,0.00032876,5]
[361944841,1747903857432,-1048.22,0.00032876,5]
[361944842,1747903857441,-478.39,0.00032876,5]
[361944843,1747903857451,-865.39,0.00032876,5]
[361944844,1747903857461,-420.0,0.00032876,5]
[361944845,1747903857470,-420.0,0.00032876,5]
[361944846,1747903857480,-422.06118411,0.00032876,5]
[361944847,1747903857489,-420.0,0.00032876,5]
[361944848,1747903857499,-420.0,0.00032876,5]
[361944849,1747903857508,-983.19,0.00032876,5]
[361944850,1747903857517,-162.25291515,0.00032876,5]
[361944851,1747903857527,-420.0,0.00032876,5]
[361944852,1747903857536,-1693.95,0.00032876,5]
[361944853,1747903857545,-420.0,0.00032876,5]
[361944854,1747903857554,-420.0,0.00032876,5]
[361944855,1747903857563,-762.17,0.00032876,5]
[361944856,1747903857572,-421.28430458,0.00032876,5]
[361944857,1747903857581,-420.0,0.00032876,5]
[361944858,1747903857590,-564.11,0.00032876,5]
[361944859,1747903857599,-420.0,0.00032876,5]
[361944860,1747903857609,-776.75,0.00032876,5]
[361944861,1747903857618,-1324.81,0.00032876,5]
[361944862,1747903857629,-969.78,0.00032876,5]
[361944863,1747903857639,-420.0,0.00032876,5]
[361944864,1747903857650,-424.51433693,0.00032876,5]
[361944865,1747903857660,-1137.84,0.00032876,5]
[361944866,1747903857669,-420.0,0.00032876,5]
[361944867,1747903857678,-420.0,0.00032876,5]
[361944868,1747903857688,-1051.2,0.00032876,5]
[361944869,1747903857697,-2000.0,0.00032876,5]
[361944870,1747903857707,-461.76,0.00032876,5]
[361944871,1747903857718,-420.0,0.00032876,5]
[361944872,1747903857728,-420.0,0.00032876,5]
[361944873,1747903857737,-734.31,0.00032876,5]
[361944874,1747903857747,-420.0,0.00032876,5]
[361944875,1747903857756,-1009.16,0.00032876,5]
[361944876,1747903857765,-442.9,0.00032876,5]
[361944877,1747903857777,-1320.29,0.00032876,5]
[361944878,1747903857786,-420.0,0.00032876,5]
[361944879,1747903857795,-420.0,0.00032876,5]
[361944880,1747903857805,-645.43,0.00032876,5]
[361944881,1747903857814,-420.0,0.00032876,5]
[361944882,1747903857825,-2070.24,0.00032876,5]
[361944883,1747903857834,-420.0,0.00032876,5]
[361944884,1747903857843,-420.0,0.00032876,5]
[361944885,1747903857853,-420.0,0.00032876,5]
[361944886,1747903857865,-421.32885401,0.00032876,5]
[361944887,1747903857876,-420.0,0.00032876,5]
[361944888,1747903857887,-420.0,0.00032876,5]
[361944889,1747903857899,-420.0,0.00032876,5]
[361944890,1747903857911,-420.0,0.00032876,5]
[361944891,1747903857920,-630.73,0.00032876,5]
[361944892,1747903857930,-715.52,0.00032876,5]
[361944893,1747903857939,-1704.22,0.00032876,5]
[361944894,1747903857949,-420.0,0.00032876,5]
[361944895,1747903857959,-420.0,0.00032876,5]
[361944896,1747903857968,-420.0,0.00032876,5]
[361944897,1747903857977,-521.07,0.00032876,5]
[361944898,1747903857987,-851.91,0.00032876,5]
[361944899,1747903857996,-420.0,0.00032876,5]
[361944900,1747903858005,-420.0,0.00032876,5]
[361944901,1747903858014,-420.0,0.00032876,5]
[361944902,1747903858024,-3117.17,0.00032876,5]
[361944903,1747903858034,-420.0,0.00032876,5]
[361944904,1747903858043,-3222.71,0.00032876,5]
[361944905,1747903858053,-420.0,0.00032876,5]
[361944906,1747903858062,-420.0,0.00032876,5]
[361944907,1747903858071,-1087.85,0.00032876,5]
[361944908,1747903858081,-629.36,0.00032876,5]
[361944909,1747903858092,-711.52,0.00032876,5]
[361944910,1747903858102,-420.0,0.00032876,5]
[361944911,1747903858111,-420.0,0.00032876,5]
[361944912,1747903858120,-1265.35,0.00032876,5]
[361944913,1747903858130,-420.0,0.00032876,5]
[361944914,1747903858141,-420.0,0.00032876,5]
[361944915,1747903858151,-420.0,0.00032876,5]
[361944916,1747903858160,-420.0,0.00032876,5]
[361944917,1747903858170,-737.67,0.00032876,5]
[361944918,1747903858181,-420.0,0.00032876,5]
[361944919,1747903858190,-420.0,0.00032876,5]
[361944920,1747903858199,-1385.85,0.00032876,5]
[361944921,1747903858209,-420.0,0.00032876,5]
[361944922,1747903858218,-420.0,0.00032876,5]
[361944923,1747903858229,-420.0,0.00032876,5]
[361944924,1747903858239,-546.99454044,0.00032876,5]
[361944925,1747903858248,-498.36,0.00032876,5]
[361944926,1747903858257,-420.0,0.00032876,5]
[361944927,1747903858266,-420.0,0.00032876,5]
[361944928,1747903858277,-1036.38,0.00032876,5]
[361944929,1747903858288,-470.85066128,0.00032876,5]
[361944930,1747903858298,-389.36825724,0.00032876,5]
[361944931,1747903858318,-30.63174276,0.00032876,5]
[361944932,1747903858329,-420.0,0.00032876,5]
[361944933,1747903858339,-420.0,0.00032876,5]
[361944934,1747903858349,-509.24,0.00032876,5]
[361944935,1747903858359,-1478.83,0.00032876,5]
[361944936,1747903858368,-1275.63,0.00032876,5]
[361944937,1747903858379,-573.88,0.00032876,5]
[361944938,1747903858390,-746.25,0.00032876,5]
[361944939,1747903858400,-420.0,0.00032876,5]
[361944940,1747903858410,-151.0,0.00032876,7]
[361944941,1747903858419,-420.0,0.00032876,5]
[361944942,1747903858428,-705.2,0.00032876,5]
[361944943,1747903858438,-420.0,0.00032876,5]
[361944944,1747903858447,-420.0,0.00032876,5]
[361944945,1747903858458,-401.06662812,0.00032876,5]
[361944946,1747903858468,-773.01,0.00032876,5]
[361944947,1747903858477,-420.0,0.00032876,5]
[361944948,1747903858486,-956.24,0.00032876,5]
[361944949,1747903858496,-423.42209903,0.00032876,5]
[361944950,1747903858505,-420.0,0.00032876,5]
[361944951,1747903858515,-420.0,0.00032876,5]
[361944952,1747903858524,-1604.53,0.00032876,5]
[361944953,1747903858533,-1152.25,0.00032876,5]
[361944954,1747903858542,-153.607196,0.00032876,7]
[361944955,1747903858552,-540.46,0.00032876,5]
[361944956,1747903858561,-420.70347155,0.00032876,5]
[361944957,1747903858570,-402.18809354,0.00032876,5]
[361944958,1747903858580,-477.38,0.00032876,5]
[361944959,1747903858590,-420.0,0.00032876,5]
[361944960,1747903858599,-420.0,0.00032876,5]
[361944961,1747903858610,-420.0,0.00032876,5]
[361944962,1747903858620,-420.0,0.00032876,5]
[361944963,1747903858630,-420.0,0.00032876,5]
[361944964,1747903858641,-420.0,0.00032876,5]
[361944965,1747903858650,-420.0,0.00032876,5]
[361944966,1747903858659,-422.15203194,0.00032876,5]
[361944967,1747903858668,-153.607196,0.00032876,7]
[361944968,1747903858678,-420.0,0.00032876,5]
[361944969,1747903858687,-420.91,0.00032876,5]
[361944970,1747903858696,-420.0,0.00032876,5]
[361944971,1747903858706,-420.0,0.00032876,5]
[361944972,1747903858719,-420.0,0.00032876,5]
[361944973,1747903858729,-924.67,0.00032876,5]
[361944974,1747903858738,-420.0,0.00032876,5]
[361944975,1747903858748,-420.0,0.00032876,5]
[361944976,1747903858757,-420.0,0.00032876,5]
[361944977,1747903858766,-1291.92,0.00032876,5]
[361944978,1747903858776,-420.0,0.00032876,5]
[361944979,1747903858789,-420.0,0.00032876,5]
[361944980,1747903858799,-420.0,0.00032876,5]
[361944981,1747903858808,-998.8,0.00032876,5]
[361944982,1747903858818,-1272.43,0.00032876,5]
[361944983,1747903858828,-420.0,0.00032876,5]
[361944984,1747903858838,-597.81,0.00032876,5]
[361944985,1747903858850,-420.0,0.00032876,5]
[361944986,1747903858860,-420.0,0.00032876,5]
[361944987,1747903858870,-421.15655192,0.00032876,5]
[361944988,1747903858880,-640.59,0.00032876,5]
[361944989,1747903858891,-420.0,0.00032876,5]
[361944990,1747903858901,-420.0,0.00032876,5]
[361944991,1747903858910,-420.0,0.00032876,5]
[361944992,1747903858920,-421.26077462,0.00032876,5]
[361944993,1747903858930,-434.56,0.00032876,5]
[361944994,1747903858939,-634.32,0.00032876,5]
[361944995,1747903858948,-420.0,0.00032876,5]
[361944996,1747903858957,-420.0,0.00032876,5]
[361944997,1747903858967,-420.0,0.00032876,5]
[361944998,1747903858976,-420.0,0.00032876,5]
[361944999,1747903858985,-420.0,0.00032876,5]
[361945000,1747903858994,-420.0,0.00032876,5]
[361945001,1747903859003,-420.0,0.00032876,5]
[361945002,1747903859013,-441.15,0.00032876,5]
[361945003,1747903859022,-1846.79,0.00032876,5]
[361945004,1747903859031,-420.0,0.00032876,5]
[361945005,1747903859042,-151.971432,0.00032876,7]
[361945006,1747903859051,-1639.89,0.00032876,5]
[361945007,1747903859061,-420.0,0.00032876,5]
[361945008,1747903859071,-420.0,0.00032876,5]
[361945009,1747903859080,-420.0,0.00032876,5]
[361945010,1747903859089,-637.33,0.00032876,5]
[361945011,1747903859098,-1330.99,0.00032876,5]
[361945012,1747903859108,-971.71,0.00032876,5]
[361945013,1747903859117,-703.59,0.00032876,5]
[361945014,1747903859127,-420.0,0.00032876,5]
[361945015,1747903859137,-420.0,0.00032876,5]
[361945016,1747903859146,-589.57,0.00032876,5]
[361945017,1747903859156,-1695.31,0.00032876,5]
[361945018,1747903859165,-420.0,0.00032876,5]
[361945019,1747903859174,-420.0,0.00032876,5]
[361945020,1747903859183,-420.0,0.00032876,5]
[361945021,1747903859194,-420.0,0.00032876,5]
[361945022,1747903859203,-420.0,0.00032876,5]
[361945023,1747903859212,-502.27653352,0.00032876,5]
[361945024,1747903859222,-420.0,0.00032876,5]
[361945025,1747903859231,-686.36,0.00032876,5]
[361945026,1747903859241,-1007.89,0.00032876,5]
[361945027,1747903859251,-423.1210803,0.00032876,5]
[361945028,1747903859260,-420.0,0.00032876,5]
[361945029,1747903859269,-565.01,0.00032876,5]
[361945030,1747903859278,-420.0,0.00032876,5]
[361945031,1747903859287,-420.0,0.00032876,5]
[361945032,1747903859296,-1465.32,0.00032876,5]
[361945033,1747903859306,-3639.39,0.00032876,5]
[361945034,1747903859315,-151.513584,0.00032876,7]
[361945035,1747903859324,-420.0,0.00032876,5]
[361945036,1747903859333,-331.162815,0.00032876,7]
[361945037,1747903859343,-420.0,0.00032876,5]
[361945038,1747903859352,-404.45737497,0.00032876,5]
[361945039,1747903859361,-697.01,0.00032876,5]
[361945040,1747903859370,-420.0,0.00032876,5]
[361945041,1747903859379,-442.25,0.00032876,5]
[361945042,1747903859390,-420.0,0.00032876,5]
[361945043,1747903859399,-526.7,0.00032876,5]
[361945044,1747903859408,-420.0,0.00032876,5]
[361945045,1747903859418,-331.162815,0.00032876,7]
[361945046,1747903859427,-422.04674045,0.00032876,5]
[361945047,1747903859436,-420.0,0.00032876,5]
[361945048,1747903859446,-420.81942403,0.00032876,5]
[361945049,1747903859455,-420.0,0.00032876,5]
[361945050,1747903859464,-421.26042994,0.00032876,5]
[361945051,1747903859473,-11818.61,0.00032876,5]
[361945052,1747903859483,-420.0,0.00032876,5]
[361945053,1747903859492,-300.0,0.00032876,5]
[361945054,1747903859501,-420.0,0.00032876,5]
[361945055,1747903859510,-420.0,0.00032876,5]
[361945056,1747903859520,-420.0,0.00032876,5]
[361945057,1747903859529,-849.948329,0.00032876,7]
[361945058,1747903859538,-2054.89,0.00032876,5]
[361945059,1747903859547,-980.65,0.00032876,5]
[361945060,1747903859556,-420.0,0.00032876,5]
[361945061,1747903859565,-420.0,0.00032876,5]
[361945062,1747903859575,-420.0,0.00032876,5]
[361945063,1747903859584,-491.29,0.00032876,5]
[361945064,1747903859593,-420.0,0.00032876,5]
[361945065,1747903859602,-420.0,0.00032876,5]
[361945066,1747903859611,-1664.27,0.00032876,5]